bitfinex/quotes_SOLUSD_20241208
["timestamp","ask_amount","ask_price","bid_price","bid_amount"]
[1733689943960,8.25921444,236.08,236.05,0.4840532]
[1733689946955,14.8626586,236.15,236.05,0.4840532]
[1733689947150,8.25921444,236.11,236.05,8.74326764]
[1733689949173,8.25921444,236.1,236.05,0.4840532]
[1733689950666,8.25921444,236.11,236.05,0.4840532]
[1733689950864,1.74653427,236.19,236.07,8.25921444]
[1733689950865,6.6341586,236.19,236.07,8.25921444]
[1733689951188,8.25921444,236.14,236.07,8.25921444]
[1733689952755,20.0,236.17,236.07,8.25921444]
[1733689952962,13.0153586,236.21,236.1,8.25921444]
[1733689953268,8.25921444,236.17,236.1,8.25921444]
[1733689953456,8.25921444,236.15,236.09,8.25921444]
[1733689959297,8.25921444,236.15,236.07,23.776884]
[1733689959466,14.23400132,236.25,236.07,8.25921444]
[1733689959467,8.25921444,236.13,236.07,8.25921444]
[1733689962782,2.1167,236.21,236.06,6.4612]
[1733689962783,8.25921444,236.14,236.08,8.25921444]
[1733689964112,8.25921444,236.14,236.07,8.25921444]
[1733689969698,8.25921444,236.11,236.06,6.4612]
[1733689969872,8.25921444,236.09,236.05,0.4840532]
[1733689970676,8.25921444,236.1,236.05,0.4840532]
[1733689972713,33.03685776,236.16,236.05,0.4840532]
[1733689972714,8.25921444,236.08,236.05,0.4840532]
[1733689973305,8.25921444,236.09,236.05,0.4840532]
[1733689973952,8.25921444,236.07,236.05,0.4840532]
[1733689975218,8.25921444,236.06,236.05,0.4840532]
[1733689980614,2.1175,236.12,236.05,0.4840532]
[1733689980615,8.25921444,236.07,236.05,0.4840532]
[1733689981472,8.25921444,236.08,236.05,0.4840532]
[1733689982217,8.25921444,236.11,236.05,0.4840532]
[1733689982431,8.25921444,236.09,236.05,0.4840532]
[1733689983127,8.25921444,236.1,236.05,0.4840532]
[1733689983707,8.25921444,236.08,236.05,0.4840532]
[1733689984452,8.25921444,236.09,236.05,0.4840532]
[1733689986794,8.25921444,236.06,236.05,0.4840532]
[1733689988058,20.0,236.09,236.05,0.4840532]
[1733689988352,8.25921444,236.06,236.05,0.4840532]
[1733689988551,20.0,236.09,236.05,0.4840532]
[1733689988754,8.25921444,236.06,236.05,0.4840532]
[1733690002554,41.2960722,236.06,236.05,0.4840532]
[1733690002755,65.0729562,236.06,236.05,0.4840532]
[1733690003478,20.0,236.03,235.93,1.5287]
[1733690003786,8.25921444,235.97,235.93,1.5287]
[1733690003938,8.25921444,235.96,235.93,1.0287]
[1733690004140,8.25921444,235.95,235.89,1.8179]
[1733690004340,8.25921444,235.94,235.82,0.4840532]
[1733690004584,8.25921444,235.95,235.88,8.25921444]
[1733690006162,8.25921444,235.96,235.88,8.25921444]
[1733690009165,8.25921444,235.96,235.89,8.25921444]
[1733690009360,8.25921444,235.97,235.9,8.25921444]
[1733690010389,20.0,236.01,235.91,8.25921444]
[1733690010701,8.25921444,236.01,235.94,8.25921444]
[1733690011188,8.25921444,236.0,235.93,8.25921444]
[1733690011372,8.25921444,236.0,235.88,23.776884]
[1733690011568,8.25921444,236.0,235.92,8.25921444]
[1733690011773,8.25921444,236.0,235.93,8.25921444]
[1733690012911,9.4589,236.05,235.97,8.25921444]
[1733690012912,6.2816,236.05,235.97,8.25921444]
[1733690013120,4.6856,236.09,235.98,8.25921444]
[1733690013410,8.25921444,236.05,235.98,8.25921444]
[1733690015523,8.25921444,236.03,235.96,8.25921444]
[1733690015685,8.25921444,236.02,235.93,1.5722]
[1733690015889,8.25921444,236.02,235.94,8.25921444]
[1733690016187,8.25921444,236.03,235.95,8.25921444]
[1733690016397,8.25921444,236.02,235.95,8.25921444]
[1733690017109,28.25921444,235.97,235.84,10.6003]
[1733690017417,28.25921444,235.97,235.9,8.25921444]
[1733690017907,20.0,235.97,235.89,8.25921444]
[1733690018210,20.0,235.97,235.85,0.63570928]
[1733690018211,8.25921444,235.96,235.85,0.63570928]
[1733690018503,28.25921444,235.97,235.9,8.25921444]
[1733690019696,20.0,235.97,235.85,0.63570928]
[1733690019889,1.5517,236.01,235.82,2.0562532]
[1733690019890,8.25921444,235.91,235.82,2.0562532]
[1733690020085,8.25921444,235.91,235.84,8.25921444]
[1733690020374,8.25921444,235.93,235.82,2.0562532]
[1733690020518,8.25921444,235.91,235.84,8.25921444]
[1733690020815,8.25921444,235.91,235.82,2.0562532]
[1733690020816,8.25921444,235.92,235.85,8.25921444]
[1733690021315,8.25921444,235.9,235.83,8.25921444]
[1733690021523,8.25921444,235.91,235.84,8.25921444]
[1733690023004,8.25921444,235.92,235.85,8.25921444]
[1733690024311,8.25921444,235.92,235.86,8.25921444]
[1733690026912,8.25921444,235.93,235.86,8.25921444]
[1733690027534,8.25921444,235.95,235.88,8.25921444]
[1733690027715,8.25921444,235.95,235.89,8.25921444]
[1733690027922,8.25921444,235.93,235.86,8.25921444]
[1733690028730,8.25921444,235.94,235.87,8.25921444]
[1733690031113,8.25921444,235.95,235.88,8.25921444]
[1733690033753,8.25921444,235.96,235.89,8.25921444]
[1733690034623,20.0,235.99,235.89,8.25921444]
[1733690034817,8.25921444,235.97,235.89,8.25921444]
[1733690035633,8.25921444,235.97,235.9,8.25921444]
[1733690037148,3.1774,236.04,235.92,8.25921444]
[1733690037355,8.25921444,235.99,235.92,8.25921444]
[1733690038831,1.576,236.06,235.95,8.25921444]
[1733690039020,8.25921444,236.03,235.95,8.25921444]
[1733690039440,8.25921444,236.02,235.95,8.25921444]
[1733690040650,8.25921444,236.03,235.95,8.25921444]
[1733690041356,8.25921444,236.03,235.96,8.25921444]
[1733690041938,8.25921444,236.02,235.95,8.25921444]
[1733690043653,8.25921444,236.01,235.94,8.25921444]
[1733690044737,1.576,236.06,235.95,8.25921444]
[1733690044738,8.25921444,236.02,235.95,8.25921444]
[1733690046826,20.0,236.05,235.97,8.25921444]
[1733690047128,28.25921444,236.05,235.97,9.85721444]
[1733690048680,28.25921444,236.05,235.98,8.25921444]
[1733690051957,3.1769,236.08,235.99,8.25921444]
[1733690052163,8.25921444,236.06,235.99,8.25921444]
[1733690053261,20.0,236.09,235.99,8.25921444]
[1733690053468,20.0,236.1,236.02,8.25921444]
[1733690053637,8.25921444,236.07,236.01,8.25921444]
[1733690053835,8.25921444,236.07,236.0,8.25921444]
[1733690058691,8.25921444,236.05,235.99,8.25921444]
[1733690063048,8.25921444,236.06,236.0,8.25921444]
[1733690063656,3.1758,236.16,236.05,8.25921444]
[1733690063848,8.25921444,236.13,236.06,8.25921444]
[1733690064048,8.25921444,236.11,236.05,8.25921444]
[1733690064741,8.25921444,236.09,236.01,0.63542883]
[1733690065042,8.25921444,236.09,236.02,8.25921444]
[1733690066664,8.25921444,236.09,236.03,8.25921444]
[1733690069207,8.25921444,236.1,236.04,8.25921444]
[1733690069749,8.25921444,236.11,236.04,8.25921444]
[1733690071377,8.25921444,236.11,236.05,8.25921444]
[1733690072196,20.0,236.17,236.07,8.25921444]
[1733690072383,8.25921444,236.14,236.07,8.25921444]
[1733690072668,8.25921444,236.13,236.07,8.25921444]
[1733690073345,8.25921444,236.13,236.06,8.25921444]
[1733690074658,7.75921444,236.13,236.06,8.25921444]
[1733690077688,7.75921444,236.13,236.07,8.25921444]
[1733690077863,20.0,236.17,236.07,8.25921444]
[1733690077864,8.25921444,236.14,236.07,8.25921444]
[1733690080655,8.25921444,236.13,236.07,8.25921444]
[1733690081555,8.25921444,236.12,236.06,8.25921444]
[1733690081866,8.25921444,236.09,236.02,1.6584]
[1733690082081,8.25921444,236.09,236.02,9.91761444]
[1733690082963,8.25921444,236.1,236.03,8.25921444]
[1733690083467,8.25921444,236.08,236.02,1.6584]
[1733690083781,8.25921444,236.07,236.02,1.6584]
[1733690084850,8.25921444,236.08,236.02,1.6584]
[1733690085078,8.25921444,236.09,236.02,9.91761444]
[1733690086365,8.25921444,236.07,235.99,20.0]
[1733690086611,8.25921444,236.08,236.01,8.25921444]
[1733690089957,8.25921444,236.09,236.02,8.25921444]
[1733690091584,8.25921444,236.11,236.03,8.25921444]
[1733690093070,8.25921444,236.1,236.03,8.25921444]
[1733690093674,8.25921444,236.09,236.02,8.25921444]
[1733690093804,6.6538,236.14,236.02,8.25921444]
[1733690094124,28.25921444,236.11,236.03,8.25921444]
[1733690094295,8.25921444,236.1,236.03,8.25921444]
[1733690094983,8.25921444,236.09,236.02,8.25921444]
[1733690098175,8.25921444,236.09,235.99,10.5936]
[1733690098375,8.25921444,236.09,236.02,8.25921444]
[1733690104385,8.25921444,236.09,236.01,8.25921444]
[1733690110312,8.25921444,236.1,236.02,8.25921444]
[1733690114920,8.25921444,236.09,235.97,1.6262]
[1733690115088,8.25921444,236.07,236.0,8.25921444]
[1733690119730,20.0,236.09,236.04,8.25921444]
[1733690120344,20.0,236.09,236.03,8.25921444]
[1733690121639,20.0,236.1,236.04,8.25921444]
[1733690122131,28.25921444,236.1,236.03,8.25921444]
[1733690122425,8.25921444,236.09,236.02,8.25921444]
[1733690122633,8.25921444,236.04,235.96,0.63540735]
[1733690122851,8.25921444,236.02,235.94,8.25921444]
[1733690124213,8.25921444,236.02,235.91,12.1414]
[1733690124423,8.25921444,236.02,235.95,8.25921444]
[1733690129027,8.25921444,236.03,235.96,8.25921444]
[1733690129642,6.4007,236.06,235.97,8.25921444]
[1733690129643,8.25921444,236.04,235.97,8.25921444]
[1733690129829,8.25921444,236.05,235.98,8.25921444]
[1733690130026,8.25921444,236.04,235.97,8.25921444]
[1733690131349,8.25921444,236.04,235.98,8.25921444]
[1733690132752,8.25921444,236.05,235.98,8.25921444]
[1733690133321,6.4007,236.06,235.98,8.25921444]
[1733690133534,8.25921444,236.05,235.98,8.25921444]
[1733690133733,8.25921444,236.04,235.97,8.25921444]
[1733690135556,8.25921444,236.03,235.96,8.25921444]
[1733690136746,8.25921444,236.04,235.97,8.25921444]
[1733690139049,6.4007,236.06,235.97,8.25921444]
[1733690139267,8.25921444,236.04,235.97,8.25921444]
[1733690143555,6.4007,236.06,235.99,8.25921444]
[1733690143757,14.65991444,236.06,235.98,8.25921444]
[1733690144074,8.25921444,236.05,235.98,8.25921444]
[1733690149865,6.4007,236.06,236.0,8.25921444]
[1733690150777,1.5568,236.08,236.02,8.25921444]
[1733690151076,8.25921444,236.1,236.03,8.25921444]
[1733690152158,6.1205,236.12,235.97,0.63538893]
[1733690152159,8.25921444,236.09,236.02,8.25921444]
[1733690153440,8.25921444,236.09,235.97,0.63538893]
[1733690153441,8.25921444,236.1,236.03,8.25921444]
[1733690156850,28.25921444,236.09,236.02,8.25921444]
[1733690157792,20.0,236.09,236.03,8.25921444]
[1733690157962,8.25921444,236.1,236.03,8.25921444]
[1733690158346,6.1205,236.12,236.04,8.25921444]
[1733690158549,14.37971444,236.12,236.04,8.25921444]
[1733690161047,8.25921444,236.11,236.04,8.25921444]
[1733690161257,8.25921444,236.1,236.03,8.25921444]
[1733690164354,6.1205,236.12,236.04,8.25921444]
[1733690164355,8.25921444,236.11,236.04,8.25921444]
[1733690165792,14.37971444,236.12,236.05,8.25921444]
[1733690173590,6.1205,236.12,236.06,8.25921444]
[1733690175578,6.1205,236.12,236.07,8.25921444]
[1733690175779,12.80673673,236.17,236.08,8.25921444]
[1733690175981,8.25921444,236.15,236.08,8.25921444]
[1733690176197,8.25921444,236.14,236.07,8.25921444]
[1733690176988,8.25921444,236.13,236.06,8.25921444]
[1733690177883,8.25921444,236.12,236.06,8.25921444]
[1733690179492,28.25921444,236.14,236.07,8.25921444]
[1733690181494,8.25921444,236.13,236.07,8.25921444]
[1733690183796,28.25921444,236.14,236.07,8.25921444]
[1733690187715,28.25921444,236.14,236.08,8.25921444]
[1733690188012,20.0,236.14,236.08,8.25921444]
[1733690194822,20.0,236.14,236.09,8.25921444]
[1733690195307,20.0,236.14,236.08,8.25921444]
[1733690198926,20.0,236.14,236.09,8.25921444]
[1733690200604,8.25921444,236.16,236.09,8.25921444]
[1733690201614,6.1666,236.17,236.11,8.25921444]
[1733690201915,8.25921444,236.2,236.13,8.25921444]
[1733690202292,8.25921444,236.19,236.12,8.25921444]
[1733690202724,8.25921444,236.18,236.12,8.25921444]
[1733690207830,8.25921444,236.18,236.11,8.25921444]
[1733690209012,8.25921444,236.18,236.12,8.25921444]
[1733690214538,8.25921444,236.17,236.12,8.25921444]
[1733690214948,8.25921444,236.15,236.06,23.776884]
[1733690215112,8.25921444,236.12,236.06,8.25921444]
[1733690217244,8.25921444,236.12,236.07,8.25921444]
[1733690217447,8.25921444,236.14,236.07,8.25921444]
[1733690222846,8.25921444,236.14,236.08,8.25921444]
[1733690224937,28.25921444,236.16,236.1,8.25921444]
[1733690229371,28.25921444,236.16,236.09,8.25921444]
[1733690229784,8.25921444,236.15,236.09,8.25921444]
[1733690230541,8.25921444,236.14,236.08,8.25921444]
[1733690232248,8.25921444,236.1,236.01,20.0]
[1733690232581,8.25921444,236.06,235.94,1.5949]
[1733690232937,8.25921444,236.06,235.99,8.25921444]
[1733690236862,8.25921444,236.07,236.0,8.25921444]
[1733690237680,8.25921444,236.08,236.01,8.25921444]
[1733690241500,8.25921444,236.06,235.95,24.66334402]
[1733690241788,8.25921444,236.06,235.99,8.25921444]
[1733690242099,8.25921444,236.07,236.0,8.25921444]
[1733690244057,8.25921444,236.06,236.0,8.25921444]
[1733690244554,8.25921444,236.06,235.95,24.66334402]
[1733690244786,8.25921444,236.06,235.99,8.25921444]
[1733690247272,8.25921444,236.07,236.0,8.25921444]
[1733690249079,8.25921444,236.07,235.99,8.25921444]
[1733690250583,8.25921444,236.06,235.99,8.25921444]
[1733690253415,6.0654,236.09,235.98,8.25921444]
[1733690253416,8.25921444,236.05,235.98,8.25921444]
[1733690254997,8.25921444,236.07,236.0,8.25921444]
[1733690258108,8.25921444,236.07,235.95,24.66334402]
[1733690258392,8.25921444,236.07,236.0,8.25921444]
[1733690261187,8.25921444,236.06,236.0,8.25921444]
[1733690261410,8.25921444,236.06,235.99,8.25921444]
[1733690263083,8.25921444,236.01,235.92,20.0]
[1733690263306,8.25921444,235.97,235.91,1.69780171]
[1733690263533,8.25921444,235.96,235.89,8.25921444]
[1733690264010,6.3482,236.0,235.9,8.25921444]
[1733690264011,8.25921444,235.97,235.9,8.25921444]
[1733690264200,8.25921444,235.96,235.89,8.25921444]
[1733690265614,8.25921444,235.95,235.88,8.25921444]
[1733690269094,8.25921444,235.95,235.85,23.776884]
[1733690269413,8.25921444,235.95,235.88,8.25921444]
[1733690269605,8.25921444,235.93,235.85,23.776884]
[1733690269814,8.25921444,235.93,235.86,8.25921444]
[1733690270316,8.25921444,235.92,235.85,8.25921444]
[1733690272912,8.25921444,235.92,235.82,24.2609372]
[1733690272913,8.25921444,235.9,235.82,24.2609372]
[1733690273096,8.25921444,235.9,235.83,8.25921444]
[1733690274697,8.25921444,235.91,235.84,8.25921444]
[1733690275506,14.60741444,235.92,235.85,8.25921444]
[1733690275717,14.60741444,235.92,235.86,8.25921444]
[1733690278791,14.60741444,235.92,235.85,8.25921444]
[1733690278998,8.25921444,235.91,235.82,24.2609372]
[1733690279192,6.3482,235.92,235.84,8.25921444]
[1733690279193,8.25921444,235.9,235.84,8.25921444]
[1733690280300,8.25921444,235.88,235.82,0.4840532]
[1733690280631,8.25921444,235.88,235.82,8.74326764]
[1733690281328,8.25921444,235.84,235.82,0.4840532]
[1733690282229,8.25921444,235.83,235.82,0.4840532]
[1733690282526,14.44061444,235.83,235.82,0.4840532]
[1733690285837,6.1814,235.83,235.82,0.4840532]
[1733690287023,1.6524,235.85,235.82,0.4840532]
[1733690288931,8.25921444,235.87,235.82,0.4840532]
[1733690290339,14.55951444,235.89,235.83,8.25921444]
[1733690291215,14.55951444,235.89,235.82,8.74326764]
[1733690292306,6.3003,235.89,235.82,8.74326764]
[1733690292513,1.6231,235.91,235.85,8.25921444]
[1733690292935,9.88231444,235.91,235.85,8.25921444]
[1733690293634,20.0,235.92,235.86,8.25921444]
[1733690293842,8.25921444,235.94,235.87,8.25921444]
[1733690294033,8.25921444,235.93,235.86,8.25921444]
[1733690295339,8.25921444,235.92,235.85,8.25921444]
[1733690295536,8.25921444,235.91,235.84,8.25921444]
[1733690296317,8.25921444,235.92,235.85,8.25921444]
[1733690297418,8.25921444,235.92,235.86,8.25921444]
[1733690298141,6.3003,235.95,235.86,8.25921444]
[1733690298310,8.25921444,235.92,235.86,8.25921444]
[1733690300650,8.25921444,235.93,235.86,8.25921444]
[1733690302050,6.3003,235.95,235.86,8.25921444]
[1733690302274,8.25921444,235.93,235.86,8.25921444]
[1733690302625,8.25921444,235.93,235.87,8.25921444]
[1733690304235,8.25921444,235.97,235.9,8.25921444]
[1733690304922,8.25921444,235.94,235.87,8.25921444]
[1733690305137,8.25921444,235.92,235.84,23.776884]
[1733690305432,8.25921444,235.92,235.85,8.25921444]
[1733690305948,8.25921444,235.92,235.84,23.776884]
[1733690306160,8.25921444,235.92,235.85,8.25921444]
[1733690307354,8.25921444,235.92,235.83,12.134]
[1733690307533,8.25921444,235.93,235.86,8.25921444]
[1733690309629,8.25921444,235.95,235.88,8.25921444]
[1733690309891,8.25921444,235.96,235.89,8.25921444]
[1733690313183,6.128,236.0,235.88,20.0]
[1733690313461,1.5717,236.03,235.96,8.25921444]
[1733690313676,1.5717,236.03,235.95,8.25921444]
[1733690313827,8.25921444,236.0,235.91,23.776884]
[1733690314032,8.25921444,235.98,235.88,20.0]
[1733690314226,8.25921444,235.96,235.87,23.902374]
[1733690314428,8.25921444,235.96,235.89,8.25921444]
[1733690317258,1.5717,236.03,235.94,8.25921444]
[1733690317574,1.5717,236.03,235.97,8.25921444]
[1733690318556,1.5717,236.03,235.98,8.25921444]
[1733690319168,6.128,236.05,235.99,8.25921444]
[1733690320656,8.25921444,236.03,235.96,8.25921444]
[1733690322578,8.25921444,236.04,235.97,8.25921444]
[1733690323482,8.25921444,236.03,235.96,8.25921444]
[1733690324366,8.25921444,236.04,235.97,8.25921444]
[1733690327110,14.38721444,236.05,235.98,8.25921444]
[1733690330507,6.128,236.05,235.98,8.25921444]
[1733690330802,8.25921444,236.04,235.98,8.25921444]
[1733690333679,8.25921444,236.0,235.89,10.5979]
[1733690333998,8.25921444,236.0,235.93,8.25921444]
[1733690334776,8.09154816,236.0,235.93,8.25921444]
[1733690336177,8.25921444,235.99,235.92,8.25921444]
[1733690338199,8.25921444,235.98,235.9,8.25921444]
[1733690338404,1.6298,236.01,235.89,8.25921444]
[1733690338405,8.25921444,235.96,235.89,8.25921444]
[1733690338707,1.6298,236.01,235.9,8.25921444]
[1733690338939,8.25921444,235.97,235.9,8.25921444]
[1733690340386,1.6298,236.01,235.95,8.25921444]
[1733690340593,1.6298,236.01,235.96,8.25921444]
[1733690340792,1.6298,236.01,235.95,8.25921444]
[1733690341099,9.88901444,236.01,235.94,8.25921444]
[1733690341474,1.6298,236.01,235.95,8.25921444]
[1733690341673,1.6298,236.01,235.96,8.25921444]
[1733690349017,6.128,236.05,235.97,8.25921444]
[1733690349217,14.38721444,236.05,235.98,8.25921444]
[1733690349478,6.128,236.05,235.99,8.25921444]
[1733690349728,6.128,236.05,236.0,8.25921444]
[1733690349924,6.128,236.05,235.99,8.25921444]
[1733690351126,14.38721444,236.05,235.94,23.902374]
[1733690351304,8.25921444,236.04,235.97,8.25921444]
[1733690351915,6.128,236.05,235.99,8.25921444]
[1733690352599,14.38721444,236.05,235.98,8.25921444]
[1733690353319,8.25921444,236.02,235.93,23.776884]
[1733690353516,8.25921444,236.02,235.95,8.25921444]
[1733690354250,8.25921444,236.03,235.96,8.25921444]
[1733690354606,8.25921444,236.02,235.95,8.25921444]
[1733690356133,6.128,236.05,235.96,8.25921444]
[1733690356312,8.25921444,236.03,235.96,8.25921444]
[1733690356513,8.25921444,236.02,235.95,8.25921444]
[1733690357214,8.25921444,236.03,235.96,8.25921444]
[1733690357409,6.128,236.05,235.98,8.25921444]
[1733690357615,6.128,236.05,235.92,33.79798849]
[1733690357616,6.128,236.05,235.99,8.25921444]
[1733690360015,6.128,236.05,235.98,8.25921444]
[1733690360928,6.128,236.05,236.0,8.25921444]
[1733690362140,6.128,236.05,235.99,8.25921444]
[1733690362727,14.38721444,236.05,235.98,8.25921444]
[1733690363229,6.128,236.05,235.99,8.25921444]
[1733690365420,14.38721444,236.05,235.98,8.25921444]
[1733690367826,8.25921444,236.04,235.98,8.25921444]
[1733690369024,14.38721444,236.05,235.98,8.25921444]
[1733690369556,6.128,236.05,235.99,8.25921444]
[1733690370171,8.25921444,236.04,235.94,0.12549]
[1733690370459,8.25921444,236.04,235.97,8.25921444]
[1733690371553,6.128,236.05,235.9,21.69260936]
[1733690371554,8.25921444,236.01,235.9,21.69260936]
[1733690371840,8.25921444,236.01,235.94,8.25921444]
[1733690372367,8.25921444,236.01,235.93,8.25921444]
[1733690372668,8.25921444,236.0,235.93,8.25921444]
[1733690372828,8.25921444,235.96,235.83,10.6004]
[1733690373026,8.25921444,235.96,235.89,8.25921444]
[1733690374249,8.25921444,235.94,235.83,10.6004]
[1733690374562,8.25921444,235.94,235.87,8.25921444]
[1733690376553,8.25921444,235.95,235.88,8.25921444]
[1733690378551,8.25921444,235.96,235.89,8.25921444]
[1733690379240,8.25921444,235.96,235.85,0.76127535]
[1733690379241,8.25921444,235.97,235.9,8.25921444]
[1733690379436,8.25921444,235.95,235.89,8.25921444]
[1733690379641,8.25921444,235.96,235.89,8.25921444]
[1733690380334,8.25921444,235.96,235.85,0.76127535]
[1733690380335,8.25921444,235.97,235.9,8.25921444]
[1733690380951,14.59741444,235.98,235.91,8.25921444]
[1733690381157,14.59741444,235.98,235.87,0.6357753]
[1733690381158,6.3382,235.98,235.93,8.25921444]
[1733690381365,6.3382,235.98,235.95,8.25921444]
[1733690381870,8.25921444,236.02,235.95,8.25921444]
[1733690385070,14.81061444,236.03,235.97,8.25921444]
[1733690386364,14.81061444,236.03,235.96,8.25921444]
[1733690388031,6.5514,236.03,235.97,8.25921444]
[1733690388344,6.5514,236.03,235.98,8.25921444]
[1733690389547,14.81061444,236.03,235.97,8.25921444]
[1733690394667,6.5514,236.03,235.98,8.25921444]
[1733690399653,6.5514,236.03,235.97,8.25921444]
[1733690400575,6.5514,236.03,235.91,10.5972]
[1733690400576,8.25921444,235.99,235.89,80.7]
[1733690400781,8.25921444,236.0,235.93,8.25921444]
[1733690400958,8.25921444,236.01,235.94,8.25921444]
[1733690401280,8.25921444,236.01,235.95,8.25921444]
[1733690402090,8.25921444,236.01,235.94,8.25921444]
[1733690402248,8.25921444,235.99,235.92,8.25921444]
[1733690402444,8.25921444,235.97,235.88,0.12549]
[1733690402665,8.25921444,235.97,235.91,8.25921444]
[1733690402955,8.25921444,235.94,235.84,1.5931]
[1733690403152,8.25921444,235.93,235.86,8.25921444]
[1733690404447,8.25921444,235.92,235.82,0.4840532]
[1733690404675,8.25921444,235.92,235.84,8.25921444]
[1733690404981,8.25921444,235.92,235.85,8.25921444]
[1733690405362,8.25921444,235.91,235.84,8.25921444]
[1733690405983,8.25921444,235.92,235.82,0.4840532]
[1733690406161,8.25921444,235.89,235.82,8.74326764]
[1733690408005,8.25921444,235.89,235.82,0.4840532]
[1733690408161,8.25921444,235.89,235.82,8.74326764]
[1733690409685,8.25921444,235.9,235.83,8.25921444]
[1733690409887,8.25921444,235.92,235.85,8.25921444]
[1733690410192,8.25921444,235.93,235.86,8.25921444]
[1733690410361,6.3927,235.95,235.82,0.4840532]
[1733690410362,8.25921444,235.87,235.82,0.4840532]
[1733690410755,8.25921444,235.89,235.82,0.4840532]
[1733690410991,8.25921444,235.89,235.82,8.74326764]
[1733690411492,20.0,235.9,235.84,8.25921444]
[1733690411658,8.25921444,235.92,235.85,8.25921444]
[1733690413262,8.25921444,235.9,235.83,8.25921444]
[1733690414196,8.25921444,235.89,235.82,0.4840532]
[1733690414392,6.3927,235.95,235.82,0.4840532]
[1733690414393,8.25921444,235.87,235.82,0.4840532]
[1733690416409,8.25921444,235.84,235.82,0.4840532]
[1733690416891,8.25921444,235.85,235.82,0.4840532]
[1733690419461,6.2304,235.87,235.82,0.4840532]
[1733690419894,14.48961444,235.87,235.82,0.4840532]
[1733690421379,8.25921444,235.84,235.82,0.4840532]
[1733690422773,6.2304,235.87,235.82,0.4840532]
[1733690422774,8.25921444,235.83,235.82,0.4840532]
[1733690426789,6.2304,235.87,235.82,0.4840532]
[1733690426984,28.25921444,235.84,235.82,0.4840532]
[1733690430328,8.25921444,235.83,235.82,0.4840532]
[1733690442422,20.0,235.84,235.82,0.4840532]
[1733690442724,8.25921444,235.83,235.82,0.4840532]
[1733690443596,11.43941444,235.83,235.82,0.4840532]
[1733690446511,11.43941444,235.83,235.7,1.5883]
[1733690446512,44.4762722,235.83,235.7,1.5883]
[1733690446726,44.4762722,235.83,235.66,8.25921444]
[1733690446727,8.25921444,235.73,235.66,8.25921444]
[1733690446890,8.25921444,235.73,235.67,23.402374]
[1733690447105,8.25921444,235.74,235.67,31.66158844]
[1733690447509,53.03685776,235.8,235.64,1.5814]
[1733690447510,8.25921444,235.73,235.64,1.5814]
[1733690448198,8.25921444,235.73,235.66,8.25921444]
[1733690449427,8.25921444,235.74,235.67,8.25921444]
[1733690450270,8.25921444,235.73,235.66,8.25921444]
[1733690450426,8.25921444,235.72,235.66,8.25921444]
[1733690450601,8.25921444,235.71,235.64,1.5814]
[1733690450800,8.25921444,235.71,235.64,9.84061444]
[1733690451001,8.25921444,235.69,235.59,23.776884]
[1733690451205,8.25921444,235.68,235.62,8.25921444]
[1733690452228,8.25921444,235.68,235.59,10.6116]
[1733690452410,8.25921444,235.68,235.61,8.25921444]
[1733690456041,8.25921444,235.67,235.61,8.25921444]
[1733690459041,20.0,235.75,235.63,8.25921444]
[1733690459246,8.25921444,235.69,235.59,0.12549]
[1733690459419,8.25921444,235.69,235.59,23.902374]
[1733690459813,8.25921444,235.69,235.62,8.25921444]
[1733690461936,20.0,235.75,235.63,8.25921444]
[1733690462165,8.25921444,235.71,235.64,8.25921444]
[1733690464154,20.0,235.75,235.64,8.25921444]
[1733690464374,8.25921444,235.72,235.65,8.25921444]
[1733690464520,8.25921444,235.71,235.61,23.902374]
[1733690464724,8.25921444,235.71,235.65,8.25921444]
[1733690465963,20.0,235.75,235.65,8.25921444]
[1733690466158,8.25921444,235.72,235.65,8.25921444]
[1733690466670,8.25921444,235.71,235.65,8.25921444]
[1733690466871,8.25921444,235.71,235.64,8.25921444]
[1733690468650,8.25921444,235.72,235.64,8.25921444]
[1733690469672,8.25921444,235.72,235.65,8.25921444]
[1733690470678,20.0,235.75,235.66,8.25921444]
[1733690470834,8.25921444,235.74,235.67,8.25921444]
[1733690475841,8.25921444,235.73,235.67,8.25921444]
[1733690476261,8.25921444,235.73,235.66,8.25921444]
[1733690479481,8.25921444,235.72,235.66,8.25921444]
[1733690480255,8.25921444,235.72,235.65,8.25921444]
[1733690482382,8.25921444,235.72,235.63,23.902374]
[1733690482383,8.25921444,235.72,235.66,8.25921444]
[1733690483585,8.25921444,235.73,235.66,8.25921444]
[1733690485067,8.25921444,235.71,235.63,23.902374]
[1733690485462,8.25921444,235.7,235.63,32.16158844]
[1733690486799,8.25921444,235.7,235.63,23.776884]
[1733690487181,8.25921444,235.69,235.58,11.0958532]
[1733690487527,8.25921444,235.69,235.62,8.25921444]
[1733690488193,8.25921444,235.67,235.58,11.0958532]
[1733690488393,8.25921444,235.67,235.6,8.25921444]